bitfinex-derivatives/quotes_SOLF0:USTF0_20250215
["timestamp","ask_amount","ask_price","bid_price","bid_amount"]
[1739582881174,5.0434,198.25,198.21,7.90925029]
[1739582882677,5.0431,198.26,198.21,12.95355029]
[1739582882978,0.03550836,198.27,198.21,7.90925029]
[1739582883381,5.07850836,198.27,198.22,5.044]
[1739582883982,0.03550836,198.27,198.21,7.90925029]
[1739582884185,0.03550836,198.27,198.23,5.0437]
[1739582884678,0.03550836,198.27,198.23,12.95295029]
[1739582886884,0.03550836,198.27,198.23,7.90925029]
[1739582887187,0.03550836,198.27,198.21,12.95335029]
[1739582887387,5.0433,198.26,198.21,12.95335029]
[1739582887588,5.07898173,198.26,198.21,12.95335029]
[1739582888286,5.0436,198.24,198.21,7.90925029]
[1739582888487,5.0436,198.24,198.19,12.95385029]
[1739582888890,5.044,198.23,198.19,7.90925029]
[1739582890994,5.0449,198.19,198.15,7.90925029]
[1739582891193,7.90925029,198.23,198.15,7.90925029]
[1739582891388,0.03749178,198.19,198.15,7.90925029]
[1739582891789,0.03749178,198.19,198.15,12.95495029]
[1739582892089,0.03749178,198.19,198.17,7.90925029]
[1739582893690,0.03749178,198.19,198.17,12.95445029]
[1739582899697,0.03749178,198.19,198.17,7.90925029]
[1739582899893,0.03749178,198.19,198.18,5.0451]
[1739582901294,0.03749178,198.19,198.17,7.90925029]
[1739582902594,0.03749178,198.19,198.14,5.0459]
[1739582902595,0.03749178,198.19,198.15,7.90925029]
[1739582903195,0.03749178,198.19,198.13,7.90925029]
[1739582903402,1.64339178,198.19,198.13,7.90925029]
[1739582903902,5.0451,198.18,198.13,12.95545029]
[1739582904098,1.64339178,198.19,198.13,7.90925029]
[1739582905003,5.0452,198.18,198.13,12.95565029]
[1739582905304,1.64339178,198.19,198.13,12.95565029]
[1739582905504,1.64339178,198.19,198.15,12.95505029]
[1739582908106,0.03749178,198.19,198.15,12.95505029]
[1739582908707,5.08239178,198.19,198.15,7.90925029]
[1739582912008,5.0457,198.16,198.11,12.95615029]
[1739582912403,0.03376246,198.15,198.11,12.95615029]
[1739582912604,0.03376246,198.15,198.12,5.0466]
[1739582914111,0.03376246,198.15,198.13,12.95565029]
[1739582914315,0.03376246,198.15,198.13,7.90925029]
[1739582915211,0.03376246,198.15,198.13,12.95545029]
[1739582915914,0.03376246,198.15,198.13,7.90925029]
[1739582916213,0.03376246,198.15,198.14,5.0461]
[1739582916807,0.03376246,198.15,198.13,12.95555029]
[1739582917005,0.03376246,198.15,198.13,7.90925029]
[1739582918914,0.03376246,198.15,198.14,5.0461]
[1739582925013,5.0436,198.24,198.18,12.95415029]
[1739582925213,7.90925029,198.23,198.16,7.90925029]
[1739582925618,5.0448,198.2,198.16,7.90925029]
[1739582926016,5.08029573,198.2,198.16,7.94281752]
[1739582929822,0.03549573,198.2,198.16,7.94281752]
[1739582930121,5.0449,198.19,198.16,7.94281752]
[1739582930420,0.03549573,198.2,198.16,7.94281752]
[1739582930618,5.08019573,198.2,198.16,7.94281752]
[1739582935126,0.03549573,198.2,198.17,5.0453]
[1739582935629,0.03549573,198.2,198.16,7.94281752]
[1739582937534,0.03549573,198.2,198.16,12.98821752]
[1739582940737,0.03549573,198.2,198.16,7.94281752]
[1739582941532,5.08019573,198.2,198.16,7.94281752]
[1739582942233,0.03549573,198.2,198.16,0.03356723]
[1739582943237,5.0449,198.19,198.16,0.03356723]
[1739582951442,5.08019573,198.2,198.16,0.03356723]
[1739582952245,0.03549573,198.2,198.16,5.07916723]
[1739582952543,0.03549573,198.2,198.16,12.98841752]
[1739582952946,0.03549573,198.2,198.16,7.94281752]
[1739582954140,0.03549573,198.2,198.17,5.0453]
[1739582955346,0.03549573,198.2,198.18,5.0449]
[1739582957544,0.03549573,198.2,198.18,12.95415029]
[1739582961747,0.03549573,198.2,198.19,5.0449]
[1739582964153,0.03549573,198.2,198.18,7.90925029]
[1739582965750,0.03549573,198.2,198.18,12.95435029]
[1739582971156,0.03549573,198.2,198.19,5.0449]
[1739582972357,12.2576605,198.29,198.24,5.0435]
[1739582972559,10.7370605,198.29,198.24,7.90925029]
[1739582972958,7.90925029,198.31,198.24,7.90925029]
[1739582973359,7.90925029,198.31,198.26,5.0431]
[1739582973564,0.035878,198.29,198.26,5.0431]
[1739582979458,0.035878,198.29,198.25,0.0373376]
[1739582980562,0.035878,198.29,198.25,5.0804376]
[1739582981362,0.035878,198.29,198.26,5.043]
[1739582984454,0.035878,198.29,198.25,0.0373376]
[1739582984656,0.035878,198.29,198.28,5.0426]
[1739582985064,0.035878,198.29,198.27,5.0428]
[1739582986767,0.035878,198.29,198.26,7.90925029]
[1739582986971,0.035878,198.29,198.28,5.0426]
[1739582987163,0.035878,198.29,198.25,0.0373376]
[1739582987369,0.035878,198.29,198.27,5.0428]
[1739582991169,0.035878,198.29,198.28,5.0426]
[1739582991372,0.035878,198.29,198.28,7.90925029]
[1739582991968,0.035878,198.29,198.28,12.95185029]
[1739582993767,0.035878,198.29,198.28,7.90925029]
[1739582997478,0.035878,198.29,198.28,12.95185029]
[1739583000676,0.035878,198.29,198.28,7.90925029]
[1739583000873,0.035878,198.29,198.26,7.90925029]
[1739583001275,0.035878,198.29,198.28,12.95185029]
[1739583001678,0.035878,198.29,198.28,7.90925029]
[1739583001872,0.035878,198.29,198.26,7.90925029]
[1739583002681,5.078278,198.29,198.25,0.0373376]
[1739583003377,5.0426,198.28,198.25,0.0373376]
[1739583003976,0.035878,198.29,198.25,0.0373376]
[1739583004583,0.035878,198.29,198.26,7.90925029]
[1739583005377,0.035878,198.29,198.27,5.0428]
[1739583005780,0.035878,198.29,198.26,7.90925029]
[1739583006276,0.035878,198.29,198.27,5.0428]
[1739583006480,0.035878,198.29,198.28,7.90925029]
[1739583006781,0.035878,198.29,198.28,12.95185029]
[1739583009586,0.035878,198.29,198.28,7.90925029]
[1739583009884,0.035878,198.29,198.25,0.0373376]
[1739583010282,7.90925029,198.28,198.25,0.0373376]
[1739583010478,7.90925029,198.26,198.18,7.90925029]
[1739583010684,7.90925029,198.24,198.16,7.90925029]
[1739583011287,7.90925029,198.24,198.18,7.90925029]
[1739583011788,0.03244352,198.23,198.22,7.90925029]
[1739583011988,9.39415029,198.3,198.22,7.90925029]
[1739583012187,0.03181681,198.24,198.22,7.90925029]
[1739583012384,7.90925029,198.28,198.21,0.0347911]
[1739583012584,0.03358846,198.24,198.21,0.0347911]
[1739583012786,5.07718846,198.24,198.21,0.0347911]
[1739583013486,0.03358846,198.24,198.21,0.0347911]
[1739583014985,0.03358846,198.24,198.22,7.90925029]
[1739583015786,0.03358846,198.24,198.23,5.0438]
[1739583016702,1.4947,198.33,198.29,7.90925029]
[1739583017685,1.52785647,198.33,198.29,7.94617962]
[1739583018989,1.52785647,198.33,198.29,0.03692933]
[1739583019694,5.0416,198.32,198.29,0.03692933]
[1739583020691,1.52785647,198.33,198.25,7.90925029]
[1739583021287,5.0421,198.3,198.25,7.90925029]
[1739583021486,7.90925029,198.32,198.25,7.90925029]
[1739583021689,7.90925029,198.32,198.23,7.90925029]
[1739583021988,7.90925029,198.28,198.27,0.03489749]
[1739583022191,0.03304689,198.29,198.21,7.90925029]
[1739583022493,0.03304689,198.29,198.23,7.90925029]
[1739583022791,7.90925029,198.3,198.23,7.90925029]
[1739583023284,7.90925029,198.32,198.23,7.90925029]
[1739583023483,0.03205037,198.28,198.23,7.90925029]
[1739583024593,0.03205037,198.28,198.21,7.90925029]
[1739583024781,7.90925029,198.3,198.21,7.90925029]
[1739583024987,0.03448372,198.26,198.21,7.90925029]
[1739583025293,0.03448372,198.26,198.21,12.95335029]
[1739583025586,0.03448372,198.26,198.22,5.044]
[1739583026183,0.03448372,198.26,198.21,12.95355029]
[1739583026583,5.07758372,198.26,198.21,12.95355029]
[1739583026891,5.07758372,198.26,198.21,7.90925029]
[1739583027288,5.0434,198.25,198.21,7.90925029]
[1739583027894,0.03448372,198.26,198.21,7.90925029]
[1739583028088,5.0438,198.24,198.21,7.90925029]
[1739583028995,5.0438,198.24,198.19,7.90925029]
[1739583029193,5.0438,198.24,198.19,12.95405029]
[1739583029991,5.0438,198.24,198.19,7.90925029]
[1739583030994,5.0439,198.23,198.19,7.90925029]
[1739583031993,5.0436,198.24,198.19,12.95405029]
[1739583033196,5.0434,198.25,198.2,5.0446]
[1739583035797,5.0439,198.23,198.19,12.95405029]
[1739583035996,0.03448372,198.26,198.19,12.95405029]
[1739583036194,0.03448372,198.26,198.19,7.90925029]
[1739583036700,5.0434,198.25,198.21,5.0443]
[1739583037594,5.0434,198.25,198.19,7.90925029]
[1739583037902,5.07758372,198.26,198.22,5.0441]
[1739583038094,5.0431,198.26,198.22,5.0441]
[1739583038294,5.08053453,198.26,198.22,5.0441]
[1739583038497,0.03743453,198.26,198.21,7.90925029]
[1739583040099,0.03743453,198.26,198.23,5.0438]
[1739583040401,0.03743453,198.26,198.21,7.90925029]
[1739583041002,0.03743453,198.26,198.22,5.0439]
[1739583042605,0.03743453,198.26,198.21,7.90925029]
[1739583042798,0.03743453,198.26,198.19,7.90925029]
[1739583043005,1.4984,198.27,198.19,7.90925029]
[1739583043299,0.03418069,198.24,198.2,5.0444]
[1739583044805,5.0439,198.23,198.19,12.95405029]
[1739583046002,5.0439,198.23,198.19,7.90925029]
[1739583046406,5.0441,198.22,198.19,7.90925029]
[1739583046906,5.0439,198.23,198.19,7.90925029]
[1739583047102,0.03418069,198.24,198.19,12.95405029]
[1739583047707,5.07798069,198.24,198.19,12.95405029]
[1739583049607,0.03418069,198.24,198.2,5.0446]
[1739583051102,0.03418069,198.24,198.19,7.90925029]
[1739583051601,5.0443,198.22,198.19,7.90925029]
[1739583052198,5.0444,198.21,198.19,7.90925029]
[1739583052901,5.0446,198.2,198.17,7.90925029]
[1739583053904,5.0441,198.22,198.17,7.90925029]
[1739583054103,7.94343098,198.24,198.17,7.90925029]
[1739583054306,5.0443,198.22,198.17,7.90925029]
[1739583054505,7.94343098,198.24,198.17,7.90925029]
[1739583055204,7.94343098,198.24,198.17,12.95455029]
[1739583055503,0.03418069,198.24,198.17,7.90925029]
[1739583056612,5.0441,198.23,198.19,5.0448]
[1739583057411,7.94343098,198.24,198.17,7.90925029]
[1739583058112,5.0443,198.22,198.17,12.95465029]
[1739583058314,7.94343098,198.24,198.17,12.95465029]
[1739583058809,5.0441,198.22,198.17,12.95465029]
[1739583059408,5.0444,198.21,198.17,12.95465029]
[1739583060306,7.94343098,198.24,198.17,7.90925029]
[1739583060507,5.0446,198.2,198.17,7.90925029]
[1739583060809,7.94343098,198.24,198.17,7.90925029]
[1739583061008,5.0441,198.22,198.17,7.90925029]
[1739583061914,0.03418069,198.24,198.19,7.90925029]
[1739583062109,5.0437,198.24,198.19,12.95395029]
[1739583062303,0.03666976,198.23,198.19,7.90925029]
[1739583062712,5.08076976,198.23,198.19,7.90925029]
[1739583063014,0.03666976,198.23,198.19,7.90925029]
[1739583063210,0.03666976,198.23,198.17,7.90925029]
[1739583063418,5.0446,198.21,198.17,7.90925029]
[1739583064106,0.03217933,198.22,198.17,7.90925029]
[1739583064306,5.0449,198.2,198.17,7.90925029]
[1739583064514,0.03217933,198.22,198.15,12.95495029]
[1739583064713,7.94142962,198.22,198.13,12.95555029]
[1739583064921,7.90925029,198.22,198.13,12.95555029]
[1739583065215,0.03533639,198.19,198.13,12.95555029]
[1739583066108,5.0453,198.18,198.13,12.95555029]
[1739583067015,5.0459,198.15,198.11,7.90925029]
[1739583067315,7.90925029,198.2,198.11,7.90925029]
[1739583067510,0.03427137,198.15,198.13,7.90925029]
[1739583068216,0.03427137,198.15,198.13,12.95565029]
[1739583068417,0.03427137,198.15,198.13,7.90925029]
[1739583070114,0.03427137,198.15,198.13,12.95535029]
[1739583071314,0.03427137,198.15,198.13,7.90925029]
[1739583071524,0.03427137,198.15,198.11,7.90925029]
[1739583072314,0.03427137,198.15,198.09,7.90925029]
[1739583073211,5.0464,198.13,198.09,7.90925029]
[1739583073919,5.08017137,198.15,198.11,12.95615029]
[1739583074313,5.08017137,198.15,198.11,7.90925029]
[1739583074518,0.03427137,198.15,198.13,5.0462]
[1739583074819,0.03427137,198.15,198.11,7.90925029]
[1739583077421,0.03427137,198.15,198.13,7.90925029]
[1739583077616,0.03427137,198.15,198.14,5.0461]
[1739583078311,0.03427137,198.15,198.13,7.90925029]
[1739583079918,0.03427137,198.15,198.14,5.0461]
[1739583080318,10.98355029,198.24,198.13,7.90925029]
[1739583080519,10.98355029,198.24,198.17,7.90925029]
[1739583081317,5.0443,198.22,198.17,7.90925029]
[1739583081518,0.03581469,198.22,198.19,0.03427137]
[1739583081920,7.94506498,198.22,198.19,0.03427137]
[1739583082426,12.95385029,198.2,198.19,0.03427137]
[1739583084324,7.90925029,198.2,198.14,5.0461]
[1739583084519,5.0453,198.18,198.14,5.0461]
[1739583085421,0.03485938,198.18,198.11,7.90925029]
[1739583085725,0.03485938,198.18,198.12,5.0465]
[1739583086123,5.0457,198.16,198.12,5.0465]
[1739583086325,7.94410967,198.18,198.11,7.90925029]
[1739583088125,5.0462,198.14,198.11,7.90925029]
[1739583088931,7.94410967,198.18,198.11,7.90925029]
[1739583089132,5.0459,198.15,198.11,7.90925029]
[1739583089533,5.0459,198.15,198.11,12.95605029]
[1739583091830,0.03485938,198.18,198.11,7.90925029]
[1739583092032,0.03485938,198.18,198.13,12.95555029]
[1739583092233,0.03485938,198.18,198.13,7.90925029]
[1739583093537,5.08005938,198.18,198.14,5.0459]
[1739583094541,5.08005938,198.18,198.13,7.90925029]
[1739583094835,5.08005938,198.18,198.15,5.0458]
[1739583096038,0.03485938,198.18,198.15,5.0458]
[1739583099439,0.03485938,198.18,198.13,7.90925029]
[1739583099636,0.03485938,198.18,198.15,12.95485029]
[1739583100338,0.03485938,198.18,198.16,5.0456]
[1739583101441,0.03485938,198.18,198.15,7.90925029]
[1739583101648,5.07995938,198.18,198.15,7.90925029]
[1739583102842,5.07995938,198.18,198.13,7.90925029]
[1739583103043,5.07995938,198.18,198.14,5.0461]
[1739583103343,5.0457,198.16,198.13,7.90925029]
[1739583103545,0.03485938,198.18,198.11,7.90925029]
[1739583103844,7.90925029,198.2,198.11,7.90925029]
[1739583104045,5.0459,198.15,198.11,7.90925029]
[1739583104944,5.0459,198.15,198.11,12.95615029]
[1739583105144,5.0459,198.15,198.11,7.90925029]
[1739583107150,5.0459,198.15,198.11,12.95605029]
[1739583107754,0.03816337,198.16,198.12,5.0465]
[1739583108153,0.03816337,198.16,198.13,7.90925029]
[1739583108351,0.03816337,198.16,198.14,5.046]
[1739583109554,0.03816337,198.16,198.15,5.0459]
[1739583109752,0.03816337,198.16,198.13,7.90925029]
[1739583110549,0.03816337,198.16,198.14,5.046]
[1739583110854,0.03816337,198.16,198.15,7.90925029]
[1739583115561,0.03816337,198.16,198.15,12.95515029]
[1739583117461,14.51740967,198.26,198.15,7.90925029]
[1739583117661,14.51740967,198.26,198.2,7.90925029]
[1739583117961,10.7370605,198.26,198.2,7.90925029]
[1739583118362,44.31216778,198.27,198.2,7.90925029]
[1739583118563,0.0352562,198.25,198.21,0.03801821]
[1739583118764,0.0352562,198.25,198.22,7.90925029]
[1739583119570,0.0352562,198.25,198.24,7.90925029]
[1739583120261,153.87653647,198.33,198.24,7.90925029]
[1739583120466,153.87653647,198.33,198.27,7.90925029]
[1739583120867,7.90925029,198.32,198.25,7.90925029]
[1739583121567,0.03456445,198.3,198.27,0.03261896]
[1739583122369,5.0426,198.29,198.27,0.03261896]
[1739583122560,0.03456445,198.3,198.27,0.03261896]
[1739583123566,7.94381474,198.3,198.27,0.03261896]
[1739583124362,5.0426,198.28,198.27,0.03261896]
[1739583129669,12.95185029,198.28,198.27,0.03261896]
[1739583129869,5.0442,198.22,198.19,7.90925029]
[1739583130173,7.90925029,198.25,198.17,7.90925029]
[1739583130367,9.39265029,198.27,198.19,7.90925029]
[1739583130571,1.4834,198.27,198.21,7.90925029]
[1739583131169,0.03415474,198.26,198.22,0.03579423]
[1739583131371,0.03415474,198.26,198.23,7.90925029]
[1739583131572,0.03415474,198.26,198.25,7.90925029]
[1739583133973,0.03415474,198.26,198.23,7.90925029]
[1739583134273,0.03415474,198.26,198.22,0.03579423]
[1739583134469,5.0435,198.25,198.22,0.03579423]
[1739583135073,5.0436,198.24,198.22,0.03579423]
[1739583135674,0.03415474,198.26,198.22,0.03579423]
[1739583135869,5.07725474,198.26,198.22,0.03579423]
[1739583136271,5.0434,198.25,198.22,0.03579423]
[1739583138575,5.07725474,198.26,198.22,0.03579423]
[1739583139579,0.03415474,198.26,198.23,7.90925029]
[1739583139882,0.03415474,198.26,198.25,7.90925029]
[1739583142680,0.03415474,198.26,198.25,12.95255029]
[1739583144273,1.5998,198.35,198.31,5.0418]
[1739583144483,9.43975029,198.39,198.31,12.95105029]
[1739583145583,0.03431415,198.37,198.33,0.03331101]
[1739583145785,7.94356444,198.37,198.33,0.03331101]
[1739583146481,5.041,198.35,198.33,0.03331101]
[1739583148381,7.94356444,198.37,198.33,0.03331101]
[1739583148983,5.041,198.35,198.33,0.03331101]
[1739583152081,7.94356444,198.37,198.33,0.03331101]
[1739583152082,5.0411,198.34,198.33,0.03331101]
[1739583153088,5.0408,198.35,198.33,0.03331101]
[1739583154584,0.03431415,198.37,198.33,7.9425613]
[1739583154784,0.03431415,198.37,198.34,5.0409]
[1739583154985,0.03431415,198.37,198.33,7.9425613]
[1739583155878,0.03431415,198.37,198.33,0.03331101]
[1739583156486,5.041,198.35,198.33,0.03331101]
[1739583158389,5.0411,198.34,198.33,0.03331101]
[1739583159191,0.03431415,198.37,198.33,0.03331101]
[1739583159886,5.0407,198.36,198.33,0.03331101]
[1739583160091,0.03431415,198.37,198.33,0.03331101]
[1739583161086,5.0408,198.35,198.33,0.03331101]
[1739583162692,5.0411,198.34,198.33,0.03331101]
[1739583165594,5.0419,198.31,198.29,7.90925029]
[1739583166295,5.0419,198.31,198.27,7.90925029]
[1739583166494,5.0421,198.3,198.27,7.90925029]
[1739583166694,5.0421,198.3,198.27,7.94277017]
[1739583167493,0.03581378,198.31,198.27,7.94277017]
[1739583167797,0.03581378,198.31,198.27,12.98557017]
[1739583169389,0.03581378,198.31,198.27,7.94277017]
[1739583169598,0.03581378,198.31,198.29,12.95155029]
[1739583170491,0.03581378,198.31,198.27,7.94277017]
[1739583171098,0.03581378,198.31,198.27,12.98557017]
[1739583172099,0.03581378,198.31,198.28,5.0426]
[1739583174300,0.03581378,198.31,198.29,12.95155029]
[1739583176404,0.03581378,198.31,198.3,5.0421]
[1739583185619,6.6333,198.4,198.35,5.0406]
[1739583185816,6.6333,198.4,198.36,7.90925029]
[1739583186723,6.66768369,198.4,198.36,12.98748279]
[1739583187215,6.66768369,198.4,198.36,7.94698279]
[1739583187623,1.62798369,198.4,198.36,7.94698279]
[1739583187922,0.03438369,198.4,198.38,7.90925029]
[1739583189018,0.03438369,198.4,198.38,12.94925029]
[1739583190117,0.03438369,198.4,198.38,7.90925029]
[1739583190319,5.07398369,198.4,198.38,7.90925029]
[1739583190513,0.03438369,198.4,198.38,7.90925029]
[1739583190712,0.03438369,198.4,198.38,12.94925029]
[1739583192020,0.03438369,198.4,198.38,7.90925029]
[1739583192228,0.03438369,198.4,198.36,7.94698279]
[1739583192524,0.03438369,198.4,198.36,0.0377325]
[1739583193428,7.94363398,198.4,198.36,0.0377325]
[1739583193823,5.0403,198.37,198.36,0.0377325]
[1739583195226,0.03438369,198.4,198.36,0.0377325]
[1739583195227,5.0401,198.38,198.36,0.0377325]
[1739583195826,0.03438369,198.4,198.36,0.0377325]
[1739583196126,5.0403,198.37,198.36,0.0377325]
[1739583196926,0.03438369,198.4,198.36,0.0377325]
[1739583197126,0.03438369,198.4,198.36,7.94698279]
[1739583197321,0.03438369,198.4,198.38,7.90925029]
[1739583199431,0.03438369,198.4,198.38,12.94925029]
[1739583200527,0.03438369,198.4,198.39,5.0398]
[1739583206034,0.03438369,198.4,198.38,7.90925029]
[1739583207540,0.03438369,198.4,198.38,12.94925029]
[1739583207836,0.03438369,198.4,198.38,7.90925029]
[1739583211138,0.03438369,198.4,198.36,0.0377325]
[1739583212037,5.04,198.39,198.36,0.0377325]
[1739583215041,0.03438369,198.4,198.36,7.94698279]
[1739583215634,0.03438369,198.4,198.37,5.0401]
[1739583216747,0.03438369,198.4,198.38,5.04]
[1739583217944,0.03438369,198.4,198.37,5.0402]
[1739583218444,0.03438369,198.4,198.36,7.94698279]
[1739583218640,0.03438369,198.4,198.36,12.98748279]
[1739583218839,0.03438369,198.4,198.36,7.94698279]
[1739583219039,0.03438369,198.4,198.36,0.0377325]
[1739583219337,5.0398,198.39,198.36,0.0377325]
[1739583219843,0.03438369,198.4,198.36,0.0377325]
[1739583220145,5.0403,198.37,198.36,0.0377325]
[1739583220443,1.5747,198.39,198.36,0.0377325]
[1739583221636,1.5747,198.39,198.36,7.94698279]
[1739583221842,0.03438369,198.4,198.36,7.94698279]
[1739583222141,0.03438369,198.4,198.38,7.90925029]
[1739583222644,0.03438369,198.4,198.38,12.94915029]
[1739583222845,0.03438369,198.4,198.38,7.90925029]
[1739583224037,0.03438369,198.4,198.39,5.0398]
[1739583226046,5.0374,198.49,198.44,7.90925029]
[1739583226447,11.02565029,198.5,198.44,7.90925029]
[1739583226645,5.0377,198.48,198.44,7.90925029]
[1739583226946,11.02565029,198.5,198.44,7.90925029]
[1739583227146,5.0378,198.47,198.44,0.03341434]
[1739583228146,0.03571065,198.48,198.44,0.03341434]
[1739583228350,0.03571065,198.48,198.44,7.94266463]
[1739583228554,0.03571065,198.48,198.46,5.0379]
[1739583228750,0.03571065,198.48,198.46,12.94715029]
[1739583231847,0.03571065,198.48,198.47,5.0377]
[1739583237859,5.0358,198.55,198.49,5.0371]
[1739583238055,5.0358,198.55,198.51,7.90925029]
[1739583238660,5.036,198.54,198.51,7.90925029]
[1739583238962,5.036,198.54,198.51,7.94508904]
[1739583239559,5.07089381,198.55,198.51,7.94508904]
[1739583240861,0.03509381,198.55,198.51,12.98178904]
[1739583241453,0.03509381,198.55,198.53,7.90925029]
[1739583242765,0.03509381,198.55,198.54,5.036]
[1739583243164,0.03509381,198.55,198.53,7.90925029]
[1739583243359,0.03509381,198.55,198.53,12.94525029]
[1739583243865,0.03509381,198.55,198.53,7.90925029]
[1739583244557,5.0363,198.53,198.51,7.94508904]
[1739583244965,0.03509381,198.55,198.51,7.94508904]
[1739583245561,5.036,198.54,198.51,7.94508904]
[1739583245960,0.03509381,198.55,198.51,7.94508904]
[1739583246162,5.07089381,198.55,198.51,7.94508904]
[1739583248269,5.036,198.54,198.51,7.94508904]
[1739583248570,0.03509381,198.55,198.51,7.94508904]
[1739583249072,5.0363,198.53,198.51,7.94508904]
[1739583249668,5.0365,198.52,198.51,7.94508904]
[1739583249863,5.0365,198.52,198.51,0.03583875]
[1739583251273,5.0362,198.54,198.51,0.03583875]
[1739583251474,0.03509381,198.55,198.51,0.03583875]
[1739583253076,5.0364,198.53,198.51,0.03583875]
[1739583254278,0.03509381,198.55,198.47,7.90925029]
[1739583254478,7.90925029,198.52,198.45,7.90925029]
[1739583254678,5.0377,198.48,198.45,7.90925029]
[1739583254882,7.90925029,198.52,198.45,7.90925029]
[1739583255380,5.038,198.46,198.43,7.90925029]
[1739583255880,5.038,198.46,198.43,7.94302327]
[1739583256479,5.0375,198.48,198.43,7.94302327]
[1739583256881,0.03380202,198.5,198.43,7.94302327]
[1739583257082,5.07100202,198.5,198.45,7.90925029]
[1739583258375,0.03380202,198.5,198.45,7.90925029]
[1739583258985,5.0373,198.49,198.45,7.90925029]
[1739583259280,0.03380202,198.5,198.46,5.038]
[1739583259781,0.03380202,198.5,198.47,7.90925029]
[1739583259979,0.03380202,198.5,198.47,12.94685029]
[1739583260783,0.03380202,198.5,198.47,7.90925029]
[1739583261485,5.07080202,198.5,198.47,7.90925029]
[1739583261686,5.07080202,198.5,198.45,7.90925029]
[1739583261882,5.07080202,198.5,198.45,12.94745029]
[1739583262388,5.0376,198.48,198.45,7.90925029]
[1739583262591,0.03380202,198.5,198.45,7.90925029]
[1739583262886,5.0375,198.48,198.45,7.90925029]
[1739583263086,0.03380202,198.5,198.45,7.90925029]
[1739583264091,5.07080202,198.5,198.45,12.94735029]
[1739583264987,0.03380202,198.5,198.45,12.94735029]
[1739583265194,5.0373,198.49,198.45,12.94735029]
[1739583266781,5.07090202,198.5,198.45,12.94735029]
[1739583267084,0.03380202,198.5,198.45,7.90925029]
[1739583267990,0.03380202,198.5,198.43,12.98182327]
[1739583268693,7.94305231,198.5,198.43,7.94302327]
[1739583268993,5.0373,198.49,198.44,5.0383]
[1739583269190,5.0373,198.49,198.43,7.94302327]
[1739583270091,0.03380202,198.5,198.46,5.0379]
[1739583271889,0.03380202,198.5,198.45,5.0382]
[1739583272494,5.0374,198.49,198.45,5.0382]
[1739583272795,0.03380202,198.5,198.44,5.0385]
[1739583273189,5.0376,198.48,198.44,5.0385]
[1739583273584,0.03380202,198.5,198.45,5.0382]
[1739583275094,0.03380202,198.5,198.43,7.94302327]
[1739583275296,0.03380202,198.5,198.44,5.0383]
[1739583275692,5.0376,198.48,198.44,5.0383]
[1739583277095,5.0377,198.48,198.43,12.98172327]
[1739583278206,7.94305231,198.5,198.43,0.03377298]
[1739583278394,7.94305231,198.5,198.43,7.94302327]
[1739583278792,5.0377,198.48,198.43,12.98172327]
[1739583279194,7.94305231,198.5,198.43,12.98172327]
[1739583279495,5.0378,198.47,198.43,12.98172327]
[1739583280099,5.0378,198.47,198.43,7.94302327]
[1739583281399,5.038,198.46,198.43,0.03377298]
[1739583281991,7.94305231,198.5,198.43,0.03377298]
[1739583283302,5.0381,198.46,198.43,0.03377298]
[1739583285203,5.0375,198.48,198.43,5.07247298]
[1739583286200,7.94305231,198.5,198.43,0.03377298]
[1739583286400,5.038,198.47,198.43,0.03377298]
[1739583287305,5.0375,198.48,198.43,5.07247298]
[1739583288299,5.0373,198.49,198.44,5.0385]
[1739583290003,0.03380202,198.5,198.45,7.90925029]
[1739583290209,0.03380202,198.5,198.45,12.94735029]
[1739583290704,0.03380202,198.5,198.47,7.90925029]
[1739583290904,0.03380202,198.5,198.49,7.90925029]
[1739583292606,0.03380202,198.5,198.48,0.0336114]
[1739583294902,7.94305231,198.5,198.48,0.0336114]
[1739583295207,5.0372,198.49,198.48,0.0336114]
[1739583295408,7.94305231,198.5,198.41,7.90925029]
[1739583295598,5.0385,198.45,198.41,7.90925029]
[1739583295801,5.0385,198.45,198.39,14.49315029]
[1739583296811,0.03226548,198.44,198.4,0.03850505]
[1739583301310,0.03226548,198.44,198.4,5.07800505]
[1739583301511,0.03226548,198.44,198.41,7.90925029]
[1739583302011,5.0388,198.43,198.4,0.03850505]
[1739583303015,0.03226548,198.44,198.4,0.03850505]
[1739583303315,7.94151577,198.44,198.4,0.03850505]
[1739583304313,7.90925029,198.42,198.35,7.90925029]
[1739583304513,7.90925029,198.42,198.34,5.0408]
[1739583305012,5.039,198.42,198.37,12.94935029]
[1739583305713,5.07816565,198.41,198.38,0.03579075]
[1739583306212,0.03876565,198.41,198.38,5.07569075]
[1739583306413,0.03876565,198.41,198.38,0.03579075]
[1739583307820,0.03876565,198.41,198.4,5.0395]
[1739583313117,6.5221,198.49,198.44,5.0385]